[Event "13th Leiden Open 2019"]
[Site "Leiden"]
[Date "2019.07.19"]
[Round "7.10"]
[White "Mostert, Joost"]
[Black "Bueno, Mark"]
[Result "0-1"]
[ECO "E52"]
[WhiteElo "1959"]
[BlackElo "1976"]
[Annotator "NA"]
[PlyCount "114"]
[EventDate "2019.07.08"]
[EventType "swiss"]
[EventCountry "NED"]
[SourceTitle "playchess.com"]
[Source "ChessBase"]
[SourceQuality "1"]
[TimeControl "40/5400+30:1800+30"]

1. d4 {[%emt 0:00:00]} Nf6 {[%emt 0:00:00]} 2. c4 {[%emt 0:00:00]} e6 {[%emt 0:00:00]} 3. Nc3 {[%emt 0:00:00]} Bb4 {[%emt 0:00:00]} 4. e3 {[%emt 0:00:00]} O-O {[%emt 0:00:57]} 5. Bd3 {[%emt 0:00:09]} d5 {[%emt 0:00:07]} 6. Nf3 {[%emt 0:00:16]} b6 {[%emt 0:01:15]} 7. O-O {[%emt 0:00:14]} Ba6 {[%emt 0:02:00]} 8. cxd5 {[%emt 0:05:33]} Bxd3 {[%emt 0:00:08]} 9. Qxd3 {[%emt 0:00:05]} exd5 {[%emt 0:00:10]} 10. a3 {[%emt 0:00:36]} Bxc3 {[%emt 0:02:04]} 11. bxc3 {[%emt 0:00:31]} Nbd7 {[%emt 0:01:34]} 12. c4 {[%emt 0:01:03]} c6 {[%emt 0:03:39]} 13. Bb2 {[%emt 0:04:03]} Rc8 {[%emt 0:07:42]} 14. Rad1 {[%emt 0:05:35]} Re8 {[%emt 0:01:49]} 15. h3 {[%emt 0:00:33]} Ne4 {[%emt 0:03:37]} 16. Ne5 {[%emt 0:03:03]} f6 {[%emt 0:01:01]} 17. Nxd7 {[%emt 0:01:23]} Qxd7 {[%emt 0:00:03]} 18. a4 {[%emt 0:12:36]} Nd6 {[%emt 0:06:09]} 19. c5 {[%emt 0:00:28]} bxc5 {[%emt 0:00:59]} 20. dxc5 {[%emt 0:00:19]} Ne4 {[%emt 0:01:55]} 21. Bd4 {[%emt 0:00:51]} Qe7 {[%emt 0:01:17]} 22. Qc2 {[%emt 0:00:30]} Rb8 {[%emt 0:05:55]} 23. Rb1 {[%emt 0:00:13]} Qc7 {[%emt 0:09:55]} 24. f3 {[%emt 0:21:44]} Ng5 {[%emt 0:02:10]} 25. Qf5 {[%emt 0:09:10]} Qf7 {[%emt 0:14:34]} 26. a5 {[%emt 0:00:51]} Qg6 {[%emt 0:01:23]} 27. Qxg6 {[%emt 0:00:44]} hxg6 {[%emt 0:00:09]} 28. a6 {[%emt 0:00:07]} Ne6 {[%emt 0:00:42]} 29. Kf2 {[%emt 0:02:26]} Nc7 {[%emt 0:00:37]} 30. Rb7 {[%emt 0:01:04]} Rxb7 {[%emt 0:00:16]} 31. axb7 {[%emt 0:00:05]} Rb8 {[%emt 0:00:06]} 32. Rb1 {[%emt 0:00:10]} Ne6 {[%emt 0:06:35]} 33. g4 {[%emt 0:05:37]} Nd8 {[%emt 0:00:35]} 34. g5 {[%emt 0:01:06]} Kf7 {[%emt 0:00:29]} 35. gxf6 {[%emt 0:01:38]} gxf6 {[%emt 0:00:13]} 36. e4 {[%emt 0:00:59]} dxe4 {[%emt 0:00:38]} 37. fxe4 {[%emt 0:00:06]} Rxb7 {[%emt 0:00:07]} 38. Rf1 {[%emt 0:02:59]} Ne6 {[%emt 0:01:04]} 39. Be3 {[%emt 0:02:12]} a5 {[%emt 0:01:35]} 40. Rd1 {[%emt 0:05:37]} a4 {[%emt 0:02:18]} 41. Ra1 {[%emt 0:32:47]} Ra7 {[%emt 0:30:28]} 42. Ra3 {[%emt 0:00:29]} Nc7 {[%emt 0:00:42]} 43. Bf4 {[%emt 0:01:02]} Nb5 {[%emt 0:00:11]} 44. Ra1 {[%emt 0:00:43]} a3 {[%emt 0:00:31]} 45. Be3 {[%emt 0:01:45]} a2 {[%emt 0:01:53]} 46. Ke2 {[%emt 0:01:14]} Ra3 {[%emt 0:01:24]} 47. h4 {[%emt 0:00:34]} Nc3+ {[%emt 0:00:34]} 48. Kf3 {[%emt 0:05:06]} Nd1 {[%emt 0:01:48]} 49. Rxd1 {[%emt 0:00:05]} a1=Q {[%emt 0:00:13]} 50. Rxa1 {[%emt 0:00:03]} Rxa1 {[%emt 0:00:06]} 51. Bd4 {[%emt 0:00:28]} Ra4 {[%emt 0:00:26]} 52. Be3 {[%emt 0:00:14]} Ke6 {[%emt 0:00:17]} 53. Bf4 {[%emt 0:00:17]} Rd4 {[%emt 0:04:13]} 54. Ke3 {[%emt 0:00:37]} Rc4 {[%emt 0:00:40]} 55. Bd6 {[%emt 0:01:18]} f5 {[%emt 0:00:12]} 56. exf5+ {[%emt 0:00:29]} Kxf5 {[%emt 0:00:02]} 57. Be7 {[%emt 0:00:21]} Re4+ {[%emt 0:00:07]} 0-1

[Event "13th Leiden Open 2019"]
[Site "Leiden"]
[Date "2019.07.20"]
[Round "8.6"]
[White "Chanda, Sandipan"]
[Black "Ikonnikov, Vyacheslav"]
[Result "1/2-1/2"]
[ECO "E51"]
[WhiteElo "2516"]
[BlackElo "2499"]
[Annotator "ChessBase"]
[PlyCount "51"]
[EventDate "2019.07.08"]
[EventType "swiss"]
[EventCountry "NED"]
[SourceTitle "playchess.com"]
[Source "ChessBase"]
[SourceQuality "1"]
[TimeControl "40/5400+30:1800+30"]

1. d4 {[%emt 0:00:00]} Nf6 {[%emt 0:00:00]} 2. c4 {[%emt 0:00:00]} e6 {[%emt 0:00:04]} 3. Nc3 {[%emt 0:00:00]} Bb4 {[%emt 0:00:22]} 4. e3 {[%emt 0:00:16]} O-O {[%emt 0:01:05]} 5. Bd2 {[%emt 0:00:16]} d5 {[%emt 0:12:21]} 6. Nf3 {[%emt 0:00:10]} a6 {[%emt 0:03:26]} 7. a3 {[%emt 0:00:14]} Be7 {[%emt 0:00:07]} 8. c5 {[%emt 0:00:07]} Nbd7 {[%emt 0:08:16]} 9. Bd3 {[%emt 0:00:26]} c6 {[%emt 0:00:06]} 10. b4 {[%emt 0:03:29]} Qc7 {[%emt 0:01:46]} 11. e4 {[%emt 0:03:52]} dxe4 {[%emt 0:04:16]} 12. Nxe4 {[%emt 0:00:33]} e5 {[%emt 0:02:18]} 13. Nxf6+ {[%emt 0:33:25]} Bxf6 {[%emt 0:00:32]} 14. O-O {[%emt 0:04:33]} exd4 {[%emt 0:02:20]} 15. Re1 {[%emt 0:00:34]} g6 {[%emt 0:15:55]} 16. Bh6 {[%emt 0:13:48]} Bg7 {[%emt 0:09:47]} 17. Qd2 {[%emt 0:00:20]} Nf6 {[%emt 0:02:11]} 18. Bf4 {[%emt 0:00:28]} Qd8 {[%emt 0:00:10]} 19. Bd6 {[%emt 0:00:47]} Re8 {[%emt 0:00:05]} 20. Bc4 {[%emt 0:08:22]} Ne4 {[%emt 0:15:18]} 21. Qa2 {[%emt 0:01:27]} Nxd6 {[%emt 0:01:27]} 22. cxd6 {[%emt 0:00:20]} Rf8 {[%emt 0:00:51]} 23. Re7 {[%emt 0:05:13]} Qxd6 {[%emt 0:03:49]} 24. Rae1 {[%emt 0:00:45]} Bf6 {[%emt 0:04:27]} 25. Rxf7 {[%emt 0:00:37]} Kh8 {[%emt 0:00:04]} 26. Rxf8+ {[%emt 0:00:27]} 1/2-1/2

[Event "13th Leiden Open 2019"]
[Site "Leiden"]
[Date "2019.07.20"]
[Round "8.7"]
[White "Van Vliet, Jeffrey"]
[Black "Ivanov, Sergey"]
[Result "1/2-1/2"]
[ECO "C17"]
[WhiteElo "2380"]
[BlackElo "2496"]
[Annotator "ChessBase"]
[PlyCount "113"]
[EventDate "2019.07.08"]
[EventType "swiss"]
[EventCountry "NED"]
[SourceTitle "playchess.com"]
[Source "ChessBase"]
[SourceQuality "1"]
[TimeControl "40/5400+30:1800+30"]

1. e4 {[%emt 0:05:25]} e6 {[%emt 0:00:00]} 2. d4 {[%emt 0:01:24]} d5 {[%emt 0:00:00]} 3. Nc3 {[%emt 0:00:03]} Bb4 {[%emt 0:00:04]} 4. e5 {[%emt 0:00:29]} c5 {[%emt 0:00:16]} 5. Bd2 {[%emt 0:01:58]} Ne7 {[%emt 0:00:45]} 6. Nb5 {[%emt 0:00:13]} Bxd2+ {[%emt 0:00:21]} 7. Qxd2 {[%emt 0:00:05]} O-O {[%emt 0:00:13]} 8. Nf3 {[%emt 0:03:39]} Nbc6 {[%emt 0:04:14]} 9. c3 {[%emt 0:04:23]} a6 {[%emt 0:01:41]} 10. Na3 {[%emt 0:06:16]} cxd4 {[%emt 0:01:09]} 11. cxd4 {[%emt 0:00:06]} f6 {[%emt 0:00:28]} 12. exf6 {[%emt 0:01:55]} Rxf6 {[%emt 0:00:08]} 13. Bd3 {[%emt 0:04:06]} Qb6 {[%emt 0:05:25]} 14. O-O-O {[%emt 0:03:13]} Bd7 {[%emt 0:04:01]} 15. Nc2 {[%emt 0:01:30]} Be8 {[%emt 0:08:30]} 16. Rde1 {[%emt 0:08:28]} Bg6 {[%emt 0:05:10]} 17. Kb1 {[%emt 0:09:35]} Bxd3 {[%emt 0:23:11]} 18. Qxd3 {[%emt 0:00:06]} Ng6 {[%emt 0:00:36]} 19. Ng5 {[%emt 0:11:11]} Rxf2 {[%emt 0:12:44]} 20. Rxe6 {[%emt 0:14:01]} Nf8 {[%emt 0:01:02]} 21. Re2 {[%emt 0:05:12]} Rxe2 {[%emt 0:02:16]} 22. Qxe2 {[%emt 0:00:05]} Nxd4 {[%emt 0:06:43]} 23. Qe5 {[%emt 0:03:32]} Nde6 {[%emt 0:03:44]} 24. Qxd5 {[%emt 0:00:12]} Rd8 {[%emt 0:00:50]} 25. Qf5 {[%emt 0:00:05]} Nxg5 {[%emt 0:03:41]} 26. Qxg5 {[%emt 0:00:04]} Ne6 {[%emt 0:00:19]} 27. Qe5 {[%emt 0:02:30]} Qd6 {[%emt 0:03:15]} 28. Qxd6 {[%emt 0:00:16]} Rxd6 {[%emt 0:00:02]} 29. Re1 {[%emt 0:00:24]} Kf7 {[%emt 0:00:44]} 30. Ne3 {[%emt 0:00:49]} Rd2 {[%emt 0:03:09]} 31. Kc1 {[%emt 0:00:29]} Rf2 {[%emt 0:00:35]} 32. Rf1 {[%emt 0:00:05]} Rxf1+ {[%emt 0:00:06]} 33. Nxf1 {[%emt 0:00:03]} Kf6 {[%emt 0:00:18]} 34. Kd2 {[%emt 0:00:17]} Ke5 {[%emt 0:00:10]} 35. Ne3 {[%emt 0:02:33]} h5 {[%emt 0:01:22]} 36. Nc4+ {[%emt 0:05:36]} Kd4 {[%emt 0:00:34]} 37. Nd6 {[%emt 0:00:18]} b5 {[%emt 0:00:33]} 38. Nf5+ {[%emt 0:01:08]} Ke5 {[%emt 0:00:34]} 39. Ne7 {[%emt 0:03:09]} Ke4 {[%emt 0:01:08]} 40. Nc6 {[%emt 0:01:34]} Nf4 {[%emt 0:01:56]} 41. g3 {[%emt 0:32:07]} Ne6 {[%emt 0:34:31]} 42. Nb4 {[%emt 0:00:00]} a5 {[%emt 0:00:00]} 43. Nc6 {[%emt 0:00:00]} Kf3 {[%emt 0:00:00]} 44. Nxa5 {[%emt 0:00:00]} Kg2 {[%emt 0:00:00]} 45. Ke3 {[%emt 0:00:00]} Kxh2 {[%emt 0:00:00]} 46. Kf2 {[%emt 0:00:00]} Ng5 {[%emt 0:00:00]} 47. b3 {[%emt 0:00:00]} Ne4+ {[%emt 0:00:00]} 48. Kf3 {[%emt 0:00:00]} Nxg3 {[%emt 0:00:00]} 49. a4 {[%emt 0:00:00]} bxa4 {[%emt 0:00:00]} 50. bxa4 {[%emt 0:00:00]} g5 {[%emt 0:00:00]} 51. Nc4 {[%emt 0:00:00]} g4+ {[%emt 0:00:00]} 52. Kf4 {[%emt 0:00:00]} Ne2+ {[%emt 0:00:00]} 53. Kg5 {[%emt 0:00:00]} g3 {[%emt 0:00:00]} 54. Ne3 {[%emt 0:00:00]} Kg1 {[%emt 0:01:52]} 55. Nf5 {[%emt 0:00:00]} Kf2 {[%emt 0:03:30]} 56. Nxg3 {[%emt 0:00:00]} Kxg3 {[%emt 0:00:41]} 57. Kxh5 {[%emt 0:00:00]} 1/2-1/2

[Event "13th Leiden Open 2019"]
[Site "Leiden"]
[Date "2019.07.20"]
[Round "8.8"]
[White "Lai, Hing Ting"]
[Black "Suvrajit, Saha"]
[Result "1-0"]
[ECO "A30"]
[WhiteElo "2460"]
[BlackElo "2189"]
[Annotator "ChessBase"]
[PlyCount "199"]
[EventDate "2019.07.08"]
[EventType "swiss"]
[EventCountry "NED"]
[SourceTitle "playchess.com"]
[Source "ChessBase"]
[SourceQuality "1"]
[TimeControl "40/5400+30:1800+30"]

1. c4 {[%emt 0:00:00]} e6 {[%emt 0:00:00]} 2. g3 {[%emt 0:00:45]} Nf6 {[%emt 0:00:40]} 3. Nf3 {[%emt 0:00:25]} b6 {[%emt 0:01:36]} 4. Bg2 {[%emt 0:00:28]} Bb7 {[%emt 0:00:02]} 5. O-O {[%emt 0:01:01]} c5 {[%emt 0:01:39]} 6. d4 {[%emt 0:00:25]} cxd4 {[%emt 0:00:18]} 7. Qxd4 {[%emt 0:00:08]} Nc6 {[%emt 0:03:35]} 8. Qf4 {[%emt 0:04:23]} Rc8 {[%emt 0:09:52]} 9. b3 {[%emt 0:03:58]} d5 {[%emt 0:03:51]} 10. Rd1 {[%emt 0:03:52]} Bd6 {[%emt 0:12:34]} 11. Qh4 {[%emt 0:01:03]} Ne7 {[%emt 0:04:28]} 12. Bb2 {[%emt 0:03:03]} Ng6 {[%emt 0:03:59]} 13. Qh3 {[%emt 0:03:15]} dxc4 {[%emt 0:04:48]} 14. Nc3 {[%emt 0:02:40]} Qe7 {[%emt 0:04:51]} 15. Nb5 {[%emt 0:08:05]} Bc5 {[%emt 0:00:48]} 16. bxc4 {[%emt 0:03:38]} a6 {[%emt 0:03:21]} 17. Nc3 {[%emt 0:02:22]} O-O {[%emt 0:01:20]} 18. Na4 {[%emt 0:02:48]} Ne4 {[%emt 0:04:56]} 19. Nxc5 {[%emt 0:05:24]} Qxc5 {[%emt 0:00:39]} 20. e3 {[%emt 0:05:48]} Rfd8 {[%emt 0:07:13]} 21. Bd4 {[%emt 0:14:32]} Qa5 {[%emt 0:05:54]} 22. Rdb1 {[%emt 0:08:45]} b5 {[%emt 0:02:43]} 23. Qh5 {[%emt 0:08:47]} Rxc4 {[%emt 0:03:21]} 24. Ne5 {[%emt 0:01:48]} Rc7 {[%emt 0:16:26]} 25. Nxg6 {[%emt 0:05:21]} hxg6 {[%emt 0:01:19]} 26. Qh4 {[%emt 0:01:44]} g5 {[%emt 0:00:15]} 27. Qg4 {[%emt 0:00:22]} f5 {[%emt 0:00:20]} 28. Qh5 {[%emt 0:00:13]} Nd2 {[%emt 0:02:11]} 29. Qg6 {[%emt 0:04:24]} Bxg2 {[%emt 0:00:30]} 30. Qxe6+ {[%emt 0:02:04]} Rf7 {[%emt 0:00:01]} 31. Kxg2 {[%emt 0:00:37]} Qc7 {[%emt 0:00:37]} 32. Rc1 {[%emt 0:00:48]} Nc4 {[%emt 0:00:49]} 33. Qxa6 {[%emt 0:00:54]} Qd7 {[%emt 0:00:17]} 34. Rd1 {[%emt 0:01:44]} Qd5+ {[%emt 0:00:04]} 35. Kg1 {[%emt 0:00:05]} Ra8 {[%emt 0:01:27]} 36. Qg6 {[%emt 0:00:00]} Qf3 {[%emt 0:00:31]} 37. Qxg5 {[%emt 0:00:07]} Rxa2 {[%emt 0:00:04]} 38. Rxa2 {[%emt 0:00:44]} Qxd1+ {[%emt 0:00:02]} 39. Kg2 {[%emt 0:00:01]} Ne5 {[%emt 0:01:21]} 40. Ra8+ {[%emt 0:01:51]} Kh7 {[%emt 0:00:04]} 41. Qf4 {[%emt 0:11:22]} Ng6 {[%emt 0:02:48]} 42. Qg5 {[%emt 0:03:29]} Ne5 {[%emt 0:02:31]} 43. Qf4 {[%emt 0:00:21]} Ng6 {[%emt 0:00:03]} 44. Qf3 {[%emt 0:00:05]} Qxf3+ {[%emt 0:00:53]} 45. Kxf3 {[%emt 0:00:02]} Rb7 {[%emt 0:00:20]} 46. Ke2 {[%emt 0:00:19]} Ne7 {[%emt 0:01:27]} 47. Kd3 {[%emt 0:01:21]} Kg6 {[%emt 0:01:03]} 48. Kc3 {[%emt 0:01:03]} Nd5+ {[%emt 0:00:49]} 49. Kb3 {[%emt 0:00:09]} Kf7 {[%emt 0:00:37]} 50. Rd8 {[%emt 0:00:42]} Ne7 {[%emt 0:01:36]} 51. Bc5 {[%emt 0:00:55]} Nc6 {[%emt 0:01:32]} 52. Rd5 {[%emt 0:00:18]} g6 {[%emt 0:00:29]} 53. Rd6 {[%emt 0:00:47]} Na5+ {[%emt 0:04:05]} 54. Kb4 {[%emt 0:00:34]} Nc4 {[%emt 0:00:09]} 55. Ra6 {[%emt 0:04:00]} Ne5 {[%emt 0:02:14]} 56. Bd4 {[%emt 0:00:18]} Nd3+ {[%emt 0:01:57]} 57. Kb3 {[%emt 0:00:05]} Nxf2 {[%emt 0:00:46]} 58. Rf6+ {[%emt 0:00:02]} Ke8 {[%emt 0:00:50]} 59. Rxg6 {[%emt 0:00:01]} Rh7 {[%emt 0:02:35]} 60. h4 {[%emt 0:00:33]} Ne4 {[%emt 0:00:32]} 61. Be5 {[%emt 0:01:08]} Re7 {[%emt 0:01:05]} 62. Bf4 {[%emt 0:01:02]} Kf7 {[%emt 0:00:36]} 63. Rc6 {[%emt 0:01:02]} Nd2+ {[%emt 0:05:21]} 64. Kc3 {[%emt 0:00:47]} Nc4 {[%emt 0:01:11]} 65. Rc5 {[%emt 0:00:46]} Kg6 {[%emt 0:01:45]} 66. Kd3 {[%emt 0:03:02]} Rd7+ {[%emt 0:00:23]} 67. Ke2 {[%emt 0:00:23]} Rd2+ {[%emt 0:00:47]} 68. Kf3 {[%emt 0:00:52]} Rb2 {[%emt 0:00:54]} 69. Be5 {[%emt 0:02:52]} Nxe5+ {[%emt 0:02:45]} 70. Rxe5 {[%emt 0:00:02]} b4 {[%emt 0:00:06]} 71. e4 {[%emt 0:01:40]} fxe4+ {[%emt 0:00:50]} 72. Rxe4 {[%emt 0:00:01]} b3 {[%emt 0:00:06]} 73. Rb4 {[%emt 0:00:17]} Rb1 {[%emt 0:00:06]} 74. Rb7 {[%emt 0:03:38]} b2 {[%emt 0:01:02]} 75. Kg4 {[%emt 0:01:15]} Kf6 {[%emt 0:01:26]} 76. h5 {[%emt 0:00:01]} Ke6 {[%emt 0:01:48]} 77. h6 {[%emt 0:01:29]} Kf6 {[%emt 0:00:29]} 78. h7 {[%emt 0:02:59]} Rh1 {[%emt 0:00:13]} 79. Rxb2 {[%emt 0:00:11]} Rxh7 {[%emt 0:00:11]} 80. Rb6+ {[%emt 0:00:04]} Ke5 {[%emt 0:00:19]} 81. Kg5 {[%emt 0:00:26]} Rg7+ {[%emt 0:02:11]} 82. Rg6 {[%emt 0:00:01]} Ra7 {[%emt 0:00:42]} 83. g4 {[%emt 0:00:37]} Ra5 {[%emt 0:00:22]} 84. Rf6 {[%emt 0:00:26]} Ra8 {[%emt 0:00:23]} 85. Rg6 {[%emt 0:01:11]} Rh8 {[%emt 0:00:19]} 86. Rg7 {[%emt 0:00:19]} Ke6 {[%emt 0:00:24]} 87. Kg6 {[%emt 0:00:01]} Rf8 {[%emt 0:00:46]} 88. g5 {[%emt 0:00:08]} Rh8 {[%emt 0:00:18]} 89. Ra7 {[%emt 0:00:50]} Rg8+ {[%emt 0:00:04]} 90. Kh6 {[%emt 0:00:16]} Kf5 {[%emt 0:00:58]} 91. Rf7+ {[%emt 0:00:26]} Ke6 {[%emt 0:00:24]} 92. g6 {[%emt 0:00:46]} Rh8+ {[%emt 0:00:28]} 93. Rh7 {[%emt 0:00:09]} Ra8 {[%emt 0:00:40]} 94. Rf7 {[%emt 0:00:49]} Rh8+ {[%emt 0:00:13]} 95. Kg7 {[%emt 0:00:15]} Ra8 {[%emt 0:01:00]} 96. Rf8 {[%emt 0:00:23]} Ra7+ {[%emt 0:00:11]} 97. Kg8 {[%emt 0:00:43]} Rb7 {[%emt 0:00:35]} 98. g7 {[%emt 0:01:04]} Rb2 {[%emt 0:00:16]} 99. Rf1 {[%emt 0:00:40]} Rb8+ {[%emt 0:00:11]} 100. Kh7 {[%emt 0:00:09]} 1-0

[Event "13th Leiden Open 2019"]
[Site "Leiden"]
[Date "2019.07.20"]
[Round "8.10"]
[White "Bueno, Mark"]
[Black "Minnema, Rens"]
[Result "1-0"]
[ECO "B09"]
[WhiteElo "1976"]
[BlackElo "1846"]
[Annotator "NA"]
[PlyCount "83"]
[EventDate "2019.07.08"]
[EventType "swiss"]
[EventCountry "NED"]
[SourceTitle "playchess.com"]
[Source "ChessBase"]
[SourceQuality "1"]
[TimeControl "40/5400+30:1800+30"]

1. e4 {[%emt 0:00:00]} d6 {[%emt 0:00:00]} 2. d4 {[%emt 0:00:00]} Nf6 {[%emt 0:00:01]} 3. Nc3 {[%emt 0:00:00]} g6 {[%emt 0:00:11]} 4. f4 {[%emt 0:00:00]} Bg7 {[%emt 0:00:24]} 5. Nf3 {[%emt 0:00:00]} O-O {[%emt 0:00:20]} 6. Bd3 {[%emt 0:00:07]} c5 {[%emt 0:00:42]} 7. e5 {[%emt 0:00:55]} dxe5 {[%emt 0:07:48]} 8. dxe5 {[%emt 0:00:20]} Nd5 {[%emt 0:00:38]} 9. Nxd5 {[%emt 0:00:07]} Qxd5 {[%emt 0:00:09]} 10. Qe2 {[%emt 0:00:04]} Nc6 {[%emt 0:06:05]} 11. Be4 {[%emt 0:00:58]} Qd7 {[%emt 0:07:04]} 12. Be3 {[%emt 0:01:04]} b6 {[%emt 0:08:45]} 13. Rd1 {[%emt 0:00:11]} Qc7 {[%emt 0:00:54]} 14. O-O {[%emt 0:00:20]} Bg4 {[%emt 0:04:12]} 15. h3 {[%emt 0:00:55]} Bxf3 {[%emt 0:00:56]} 16. Qxf3 {[%emt 0:00:09]} Rac8 {[%emt 0:00:38]} 17. Bxc6 {[%emt 0:00:59]} Qxc6 {[%emt 0:00:02]} 18. Qxc6 {[%emt 0:00:08]} Rxc6 {[%emt 0:00:05]} 19. Rd7 {[%emt 0:00:03]} f6 {[%emt 0:10:46]} 20. Rxe7 {[%emt 0:01:56]} fxe5 {[%emt 0:00:39]} 21. fxe5 {[%emt 0:00:10]} Rxf1+ {[%emt 0:01:13]} 22. Kxf1 {[%emt 0:00:11]} a6 {[%emt 0:02:18]} 23. Bf4 {[%emt 0:01:09]} Kf8 {[%emt 0:01:27]} 24. Ra7 {[%emt 0:00:33]} b5 {[%emt 0:04:53]} 25. Rd7 {[%emt 0:00:47]} c4 {[%emt 0:05:11]} 26. Ke2 {[%emt 0:00:48]} Rc5 {[%emt 0:02:10]} 27. e6 {[%emt 0:06:38]} Rc6 {[%emt 0:15:39]} 28. Rd6 {[%emt 0:01:19]} Rxd6 {[%emt 0:00:46]} 29. Bxd6+ {[%emt 0:00:03]} Ke8 {[%emt 0:00:13]} 30. b3 {[%emt 0:01:58]} cxb3 {[%emt 0:00:58]} 31. cxb3 {[%emt 0:00:02]} Bd4 {[%emt 0:08:19]} 32. Kd3 {[%emt 0:00:16]} Bb6 {[%emt 0:00:35]} 33. Ke4 {[%emt 0:00:36]} Bd8 {[%emt 0:01:53]} 34. Kd5 {[%emt 0:00:14]} h5 {[%emt 0:01:54]} 35. Kc6 {[%emt 0:00:34]} h4 {[%emt 0:01:05]} 36. Kb7 {[%emt 0:01:30]} a5 {[%emt 0:01:42]} 37. e7 {[%emt 0:01:43]} Bxe7 {[%emt 0:00:18]} 38. Bxe7 {[%emt 0:00:04]} Kxe7 {[%emt 0:00:06]} 39. Kb6 {[%emt 0:00:11]} a4 {[%emt 0:01:13]} 40. Kxb5 {[%emt 0:00:12]} axb3 {[%emt 0:00:09]} 41. axb3 {[%emt 0:30:01]} Kd7 {[%emt 0:33:00]} 42. Kc5 {[%emt 0:00:46]} 1-0

[Event "13th Leiden Open 2019"]
[Site "Leiden"]
[Date "2019.07.21"]
[Round "9.6"]
[White "Beerdsen, Thomas"]
[Black "Chanda, Sandipan"]
[Result "1/2-1/2"]
[ECO "B81"]
[WhiteElo "2497"]
[BlackElo "2516"]
[Annotator "ChessBase"]
[PlyCount "49"]
[EventDate "2019.07.08"]
[EventType "swiss"]
[EventCountry "NED"]
[SourceTitle "playchess.com"]
[Source "ChessBase"]
[SourceQuality "1"]
[TimeControl "40/5400+30:1800+30"]

1. e4 {[%emt 0:00:00]} c5 {[%emt 0:00:00]} 2. Nf3 {[%emt 0:00:00]} d6 {[%emt 0:00:00]} 3. d4 {[%emt 0:00:00]} cxd4 {[%emt 0:00:00]} 4. Nxd4 {[%emt 0:00:00]} Nf6 {[%emt 0:00:03]} 5. Nc3 {[%emt 0:00:00]} a6 {[%emt 0:00:10]} 6. h3 {[%emt 0:00:00]} e6 {[%emt 0:00:08]} 7. g4 {[%emt 0:00:03]} Nfd7 {[%emt 0:00:10]} 8. g5 {[%emt 0:00:06]} b5 {[%emt 0:00:08]} 9. a3 {[%emt 0:00:09]} Bb7 {[%emt 0:00:07]} 10. h4 {[%emt 0:02:04]} Be7 {[%emt 0:00:47]} 11. Be3 {[%emt 0:00:09]} Nc6 {[%emt 0:00:07]} 12. Qe2 {[%emt 0:00:07]} Nxd4 {[%emt 0:05:34]} 13. Bxd4 {[%emt 0:00:06]} e5 {[%emt 0:00:08]} 14. Be3 {[%emt 0:00:06]} Rc8 {[%emt 0:00:06]} 15. Bh3 {[%emt 0:08:28]} Rc4 {[%emt 0:12:35]} 16. a4 {[%emt 0:07:50]} O-O {[%emt 0:02:27]} 17. axb5 {[%emt 0:05:20]} axb5 {[%emt 0:01:24]} 18. Ra7 {[%emt 0:14:33]} Bc6 {[%emt 0:01:01]} 19. Bxd7 {[%emt 0:21:32]} Bxd7 {[%emt 0:00:13]} 20. Nd5 {[%emt 0:00:21]} Ra4 {[%emt 0:07:24]} 21. Rxa4 {[%emt 0:02:30]} bxa4 {[%emt 0:04:14]} 22. Qa6 {[%emt 0:01:11]} Qe8 {[%emt 0:09:25]} 23. O-O {[%emt 0:05:39]} f5 {[%emt 0:02:31]} 24. exf5 {[%emt 0:07:40]} Bxf5 {[%emt 0:02:02]} 25. Nxe7+ {[%emt 0:04:14]} 1/2-1/2

[Event "13th Leiden Open 2019"]
[Site "Leiden"]
[Date "2019.07.21"]
[Round "9.10"]
[White "De Jong, Sebastiaan"]
[Black "Bueno, Mark"]
[Result "1/2-1/2"]
[ECO "A26"]
[WhiteElo "1942"]
[BlackElo "1976"]
[Annotator "NA"]
[PlyCount "32"]
[EventDate "2019.07.08"]
[EventType "swiss"]
[EventCountry "NED"]
[SourceTitle "playchess.com"]
[Source "ChessBase"]
[SourceQuality "1"]
[TimeControl "40/5400+30:1800+30"]

1. c4 {[%emt 0:00:00]} e5 {[%emt 0:00:00]} 2. Nc3 {[%emt 0:00:00]} Nc6 {[%emt 0:00:00]} 3. g3 {[%emt 0:00:09]} g6 {[%emt 0:00:00]} 4. Bg2 {[%emt 0:00:15]} Bg7 {[%emt 0:00:00]} 5. d3 {[%emt 0:00:56]} d6 {[%emt 0:00:00]} 6. Nf3 {[%emt 0:02:35]} f5 {[%emt 0:00:29]} 7. e4 {[%emt 0:06:18]} Nf6 {[%emt 0:01:35]} 8. a3 {[%emt 0:06:19]} a5 {[%emt 0:02:05]} 9. Rb1 {[%emt 0:02:51]} O-O {[%emt 0:00:24]} 10. h3 {[%emt 0:00:49]} Qe8 {[%emt 0:31:39]} 11. O-O {[%emt 0:11:52]} h6 {[%emt 0:08:41]} 12. Re1 {[%emt 0:11:17]} f4 {[%emt 0:01:31]} 13. Kh2 {[%emt 0:05:30]} g5 {[%emt 0:00:51]} 14. Ng1 {[%emt 0:18:15]} Nd4 {[%emt 0:20:54]} 15. Nce2 {[%emt 0:03:32]} Qh5 {[%emt 0:03:09]} 16. f3 {[%emt 0:07:03]} Ne6 {[%emt 0:06:15]} 1/2-1/2